Cogmind - Beta 15 @@@ ROGUE MODE // 2025.07.27 @ 16:07:16 Player: StaticNoob Result: Destroyed by G-73 Enforcer with Phase Gun Performance ------------- Evolutions (9) 4500 Regions Visited (22) 4400 Robots Destroyed (267) 1335 Value Destroyed (13510) 13510 Prototype IDs (72) 1440 Alien Tech Used (5) 1000 Bonus (10233) 10233 TOTAL SCORE: 36418 Bonus ------- High Alert Combat Kills 723 Follower Combat Kills 2052 Network Hubs Disabled 200 Met Zhirov 300 Built Enhanced Grunts 300 A7 Reached Mainframe 300 Met R17 at Cetus 500 Met R17 at Research 2000 Acquired SGEMP 2000 Delivered SGEMP 2000 Friendly Fire -142 Cogmind --------- Core Integrity 0/1600 Matter 243/300 Energy 99/100 System Corruption 42% Temperature Cool (27) Movement Core (50) Location -1/Command Parts ------- > --- POWER (3) -------- (None) > --- PROPULSION (5) --- (None) > --- UTILITY (13) ----- Experimental Optical Array > --- WEAPON (4) ------- (None) > --- INVENTORY (5) ---- (None) Peak State ------------ > --- POWER ------------ Antimatter-Quantum Reactor > --- PROPULSION ------- Centrium Leg Biometal Exoskeleton > --- UTILITY ---------- Armored Scrap Engine Advanced Heat Sink Experimental Heat Sink Experimental Optical Array Advanced Targeting Computer Advanced Target Analyzer Advanced Target Analyzer Advanced Weapon Cycler Advanced Transmission Jammer Advanced Phase Shifter Graphene Brace Improved Point Defense System > --- WEAPON ----------- Ballistic Linear Construct/C Laser Linear Construct/C Kinetic Linear Construct/C Hpw. Laser Linear Construct/G > --- INVENTORY -------- Quantum Capacitor Advanced Phase Shifter Micro-nuke Launcher [Rating: 196] Favorites ----------- Power Constructs Engine Light Deuterium Engine Power Core Micro Nuclear Core Reactor Constructs Propulsion Constructs Treads Light Treads Leg Constructs Utility Large Storage Unit Device Armored Scrap Engine Storage Large Storage Unit Processor Advanced Targeting Computer Hackware Hacking Suite Protection Hardened Medium Armor Plating Weapon Constructs Energy Gun Constructs Energy Cannon Constructs Ballistic Gun Light Assault Rifle Ballistic Cannon Constructs Launcher Tiamat Missile Launcher Special Weapon Remote Datajack Impact Weapon Powered Hammer Slashing Weapon Phasing Sabre Special Melee Weapon Advanced Datajack Build | -11 -10 -10 -8 -7 -7 -7 -5 -5 -5 -5 -4 -4 -4 -4 -4 -4 -3 -3 -2 -2 -1 -1 ------- Run | Yrd Mat Sub Mat Fac Sto Rec Fac Upp Upp Zhi Pro Fac Ext Cet Arc Hub Res Qua Res Tes Acc Com Slots Evolved 18 | . . . 4 2 . . 4 . . . . 2 . . . . 2 . 2 . 2 . Power 2 | . . . . . . . 1 . . . . 1 . . . . . . . . . . Propulsion 3 | . . . 2 . . . . . . . . . . . . . 1 . . . . . Utility 11 | . . . 2 2 . . 2 . . . . . . . . . 1 . 2 . 2 . Weapon 2 | . . . . . . . 1 . . . . 1 . . . . . . . . . . Parts Attached 149 | 7 7 2 36 10 1 5 7 2 . 4 3 3 3 . 2 2 15 7 7 4 17 5 Power 9 | 2 . 1 4 1 . 1 . . . . . . . . . . . . . . . . Engine 6 | 2 . 1 3 . . . . . . . . . . . . . . . . . . . Core 3 | . . . 1 1 . 1 . . . . . . . . . . . . . . . . Reactor . | . . . . . . . . . . . . . . . . . . . . . . . Propulsion 24 | 2 1 . 18 1 . . . . . . . . . . . . 1 . . . . 1 Treads 13 | 2 1 . 10 . . . . . . . . . . . . . . . . . . . Leg 11 | . . . 8 1 . . . . . . . . . . . . 1 . . . . 1 Wheel . | . . . . . . . . . . . . . . . . . . . . . . . Hover . | . . . . . . . . . . . . . . . . . . . . . . . Flight . | . . . . . . . . . . . . . . . . . . . . . . . Utility 84 | 2 3 1 6 4 . 3 5 1 . 4 2 3 3 . 1 1 13 6 6 4 13 3 Device 51 | 1 1 1 . 2 . 1 2 1 . 1 1 2 3 . 1 1 10 6 3 2 9 3 Storage 8 | 1 2 . 1 . . . 1 . . 2 . . . . . . . . 1 . . . Processor 13 | . . . 1 . . . 2 . . . 1 . . . . . 3 . 1 2 3 . Hackware 8 | . . . 2 1 . 2 . . . . . 1 . . . . . . 1 . 1 . Protection 4 | . . . 2 1 . . . . . 1 . . . . . . . . . . . . Artifact . | . . . . . . . . . . . . . . . . . . . . . . . Weapon 32 | 1 3 . 8 4 1 1 2 1 . . 1 . . . 1 1 1 1 1 . 4 1 Energy Gun 3 | . . . 1 . . . . . . . . . . . . . . . . . 2 . Energy Cannon 1 | . . . . . . . . . . . . . . . . . . . . . 1 . Ballistic Gun 4 | 1 1 . 2 . . . . . . . . . . . . . . . . . . . Ballistic Cannon 8 | . 1 . 4 2 1 . . . . . . . . . . . . . . . . . Launcher 10 | . 1 . 1 1 . . 2 1 . . . . . . . . . 1 1 . 1 1 Special Weapon 1 | . . . . . . . . . . . . . . . . . 1 . . . . . Impact Weapon 1 | . . . . 1 . . . . . . . . . . . . . . . . . . Slashing Weapon 3 | . . . . . . 1 . . . . 1 . . . 1 . . . . . . . Piercing Weapon . | . . . . . . . . . . . . . . . . . . . . . . . Special Melee Weapon 1 | . . . . . . . . . . . . . . . . 1 . . . . . . Unidentified Prototypes 22 | . . . 1 . . 1 4 . . 4 1 . . . . . 2 6 1 1 1 . Corrupted Parts 1 | . . . . . . . . . . . . . . . . . . 1 . . . . System Corruption 9 | . . . . . . . . . . . . . . . . . . 9 . . . . Parts Lost 90 | . 3 2 11 2 6 1 2 1 . . . 1 4 . . . 2 2 3 8 14 28 Power 8 | . 1 1 2 . 1 . . . . . . . . . . . . . . . . 3 Propulsion 15 | . . 1 4 . 4 . . . . . . . . . . . . . . . 1 5 Utility 40 | . 1 . 2 1 1 1 1 . . . . 1 1 . . . 2 1 2 5 8 13 Weapon 27 | . 1 . 3 1 . . 1 1 . . . . 3 . . . . 1 1 3 5 7 Highest Loss Streak 17 | . 3 2 3 2 5 6 2 1 . . . 1 1 . . . 1 1 3 3 4 17 To Critical Strikes 2 | . . . 1 . . . . . . . . . 1 . . . . . . . . . Average Backups 11 | . 7 13 13 13 13 10 8 11 13 14 14 11 12 15 15 15 14 13 11 7 1 2 Power . | . . 1 . . . . . . . . . . . . . . . . . . . . Propulsion . | . . . 1 3 3 . . . . . . . . . . . . . . . . . Utility 6 | . 2 5 5 7 8 6 6 7 10 10 10 7 8 11 11 11 10 8 6 4 . 1 Weapon 3 | . 3 6 5 2 2 3 2 3 3 3 3 3 3 3 2 2 3 3 4 2 . . Tool/Special . | . . . . . . . . . . . . . . . . . . . . . . . Unused Backups 19 | . . . 7 2 . 2 1 . . . 2 . 1 . . . 1 . . 2 . 1 Power 1 | . . . 1 . . . . . . . . . . . . . . . . . . . Propulsion 2 | . . . 1 . . . . . . . . . 1 . . . . . . . . . Utility 5 | . . . . . . . 1 . . . 2 . . . . . 1 . . 1 . . Weapon 11 | . . . 5 2 . 2 . . . . . . . . . . . . . 1 . 1 Tool/Special . | . . . . . . . . . . . . . . . . . . . . . . . Average Slot Usage (%) 76 | . 98 99 97 98 97 76 68 69 68 69 69 62 64 68 67 67 66 63 64 64 63 62 Engine 2 | . 14 13 7 . . . 2 . . . . . . . . . . . . . . . Core 1 | . . . 1 6 5 5 2 5 5 5 1 . . . . . . . . . . . Reactor 1 | . . . . . . . . . . . 3 5 4 4 4 5 4 4 4 4 4 4 Treads 6 | . 28 28 29 . . 1 . . . . . . 2 . 1 . . 2 . . . . Leg 6 | . . . 4 30 29 11 2 1 5 5 2 5 2 4 3 5 4 1 2 . 1 6 Device 13 | . 13 14 2 7 7 3 10 11 11 10 8 13 14 15 14 14 21 22 22 20 27 24 Storage 6 | . 14 14 9 7 7 7 5 5 5 5 5 5 5 5 5 5 4 4 4 2 . . Processor 7 | . . . 8 7 7 7 11 11 11 11 13 6 5 5 5 5 5 9 9 12 12 14 Hackware 9 | . . . 13 15 15 21 11 11 11 11 11 10 10 10 10 10 4 . 4 4 2 1 Energy Gun 1 | . . . . . . . 1 11 5 5 7 5 . . . . 5 2 2 1 2 3 Energy Cannon 1 | . . . . . . . 1 . . . . . 1 5 5 5 1 3 2 . 1 2 Ballistic Gun 5 | . 21 14 9 . . 1 8 . . . . 1 6 10 10 10 4 3 5 6 4 4 Ballistic Cannon 3 | . 4 14 8 7 7 2 . . 4 5 3 3 2 . . . 2 . . 2 2 1 Impact Weapon 1 | . . . . 5 7 5 . . 1 5 1 . . . . . . . . . . . Slashing Weapon 1 | . . . . . . 4 . . . . 1 5 5 2 5 . . 3 3 3 2 . Peak Build Rating 196 | 6 8 9 42 50 52 56 102 106 99 104 118 122 128 128 138 133 156 159 178 181 194 196 Average Rating 91 | 4 7 8 28 48 49 45 79 101 96 98 108 118 115 126 133 132 143 147 165 171 177 156 On Entrance 94 | . 6 8 9 42 50 29 54 102 97 97 99 111 122 124 132 132 133 156 154 167 175 185 Naked Turns . | . . . . . . . . . . . . . . . . . . . . . . . Heaviest Build 119 | 13 33 30 37 49 45 34 51 54 54 48 58 58 104 110 96 95 119 97 101 77 90 75 Greatest Support 189 | 40 40 40 86 80 80 63 121 121 98 98 120 120 142 188 188 188 189 189 176 176 176 180 Greatest Overweight (x) 11 | . . . 1 . 9 11 . . . . . . . . . . . . 1 . . 8 Average Overweight (x) . | . . . . . . . . . . . . . . . . . . . . . . . Largest Inventory Capacity 15 | 8 15 15 15 15 15 15 15 15 15 15 15 15 15 15 15 15 15 15 15 15 5 5 Average Capacity 14 | 7 14 15 15 15 15 15 15 15 15 15 15 15 15 15 15 15 15 15 15 11 5 5 Most Carried 15 | 1 12 14 15 15 14 13 11 13 14 15 15 13 15 15 15 15 15 15 15 15 4 5 Average Carried 11 | . 7 13 13 13 13 10 8 11 13 14 14 11 12 15 15 15 14 14 13 10 1 2 Final Capacity 15 | 8 15 15 15 15 15 15 15 15 15 15 15 15 15 15 15 15 15 15 15 5 5 5 Final Carried 15 | 1 12 14 15 12 14 10 11 13 13 15 14 12 15 15 15 15 15 15 15 5 3 . Scrap Engine Consumption 366 | . . . . . . 40 37 5 . 5 21 3 42 25 10 2 54 17 32 22 40 11 Constructs Created 19 | . . . . . . 4 3 . . . . . 3 . . . . . 2 1 4 2 Constructs Modified 123 | . . . . . . 6 9 4 2 . 11 1 11 5 11 . 15 13 9 13 11 2 Class Distribution -------------------- 21% | Construct 16% | Hacker-Construct 15% | Hacker-Mutant 14% | Commander-Construct 13% | Mutant 9% | Commander-Mutant 3% | Infiltrator-Construct Dominant Class ---------------- Mutant | -10/Materials Scavenger-Mutant | -10/Subcaves Hacker-Mutant | -8/Materials Hacker-Mutant | -7/Factory Hacker-Mutant | -7/Storage Commander-Mutant | -7/Recycling Commander-Construct | -5/Factory Hacker-Construct | -5/Upper Caves Hacker-Construct | -5/Upper Caves Hacker-Construct | -5/Zhirov Hacker-Construct | -4/Proximity Caves Hacker-Construct | -4/Factory Hacker-Construct | -4/Extension Commander-Construct | -4/Cetus Commander-Construct | -4/Archives Commander-Construct | -4/Hub_04(d) Construct | -3/Research Construct | -3/Quarantine Construct | -2/Research Construct | -2/Testing Construct | -1/Access Scavenger-Construct | -1/Command Resources | -11 -10 -10 -8 -7 -7 -7 -5 -5 -5 -5 -4 -4 -4 -4 -4 -4 -3 -3 -2 -2 -1 -1 ----------- Run | Yrd Mat Sub Mat Fac Sto Rec Fac Upp Upp Zhi Pro Fac Ext Cet Arc Hub Res Qua Res Tes Acc Com Matter Collected 8565 | 218 592 119 929 417 159 177 1098 194 53 108 363 67 366 153 100 103 534 1065 457 429 641 223 Remotely 2223 | . 394 119 14 . . . 882 43 . . . . . . . . . 490 150 131 . . Salvage Created 13173 | 126 386 108 1135 296 337 140 1003 178 57 132 1014 114 1361 660 316 419 891 943 856 1056 1260 385 Parts 639 | 10 38 7 65 9 9 5 49 12 . 4 39 10 71 26 10 18 38 52 50 39 57 21 Haulers Intercepted 13 | . 2 . 3 1 1 1 1 . . . 1 . . . . . 2 . . 1 . . Recyclers Shooed 11 | . . . 2 . 1 . 2 . . . . 1 . . . . 1 1 1 . 2 . Parts Field Recycled . | . . . . . . . . . . . . . . . . . . . . . . . Retrieved Matter . | . . . . . . . . . . . . . . . . . . . . . . . Parts Self-Destructed 15 | . . 3 . . . . . 9 . 1 2 . . . . . . . . . . . Prevented 38 | . . . . . . . . . . . 38 . . . . . . . . . . . Kills | -11 -10 -10 -8 -7 -7 -7 -5 -5 -5 -5 -4 -4 -4 -4 -4 -4 -3 -3 -2 -2 -1 -1 ------- Run | Yrd Mat Sub Mat Fac Sto Rec Fac Upp Upp Zhi Pro Fac Ext Cet Arc Hub Res Qua Res Tes Acc Com Combat Hostiles Destroyed 188 | . 14 3 29 10 3 2 16 4 . . 11 1 16 7 3 5 5 14 6 9 19 11 Melee 5 | . . . . 2 . 1 . . . . . . . . . . . 1 . 1 . . Guns 47 | . 5 . 8 . . . 4 2 . . . . 3 . . 3 4 1 2 3 6 6 Cannons 66 | . 2 3 13 4 . . . . . . . 1 12 . 1 2 . 9 . 1 13 5 AOE 40 | . 7 . 8 3 . . 12 2 . . 4 . . . . . . 3 . 1 . . Classes Destroyed 25 | 3 5 . 7 2 1 . . . 1 . 1 . . . . . 1 1 . 3 . . Worker 20 | 1 1 . 3 . . . 4 . . . . 2 . . . 1 3 . 3 . 1 1 Builder 12 | . . . 2 . 2 . . . . . . 1 . . . 1 1 1 1 . 3 . Tunneler 6 | 3 1 . . . . . . . . . . . . . . . . . 2 . . . Hauler 13 | . 2 . 3 1 1 1 1 . . . 1 . . . . . 2 . . 1 . . Recycler 7 | 1 . . 1 . 1 . . . . . . . 1 . . . 1 1 1 . . . Minesweeper 1 | . . . . . . . . . . . 1 . . . . . . . . . . . Mechanic 3 | . . . . . 1 . 1 . . . . . . . . . . . . 1 . . Operator 6 | . . . 2 . . . . . . . . . 2 . 1 . . . 1 . . . Watcher 8 | . 1 . 1 . . . 1 . . . . . 2 2 . . . . . 1 . . Swarmer 28 | . 6 . 6 2 . . . . . . 1 . 4 . . . . . . . 5 4 Grunt 48 | . 7 2 14 2 1 . 3 . . . 7 . 3 . . 3 1 2 . 1 2 . Brawler 2 | . . . 1 . . . 1 . . . . . . . . . . . . . . . Duelist 1 | . . . 1 . . . . . . . . . . . . . . . . . . . Protector 1 | . . . 1 . . . . . . . . . . . . . . . . . . . Researcher 1 | . . . . . . . . . . . . . . . . . . . . 1 . . Sentry 30 | . . . 5 2 2 1 3 . . . 1 . 8 . 3 2 1 . 1 . 1 . Specialist 3 | . . . . . . . . . . . . . . . . . . . . 3 . . Hunter 29 | . . . . 3 . . 8 2 . . 2 . 1 . . . . . 4 2 7 . Programmer 27 | . . . . 1 . 1 3 2 . . . 1 . . . . . 11 . . 3 5 Heavy 3 | . . . 1 . . . . . . . . . . . . . . . 1 . 1 . Behemoth 3 | . . . . . . . . . . . . . . . . . 3 . . . . . Cetus Guard 7 | . . . . . . . . . . . . . . 7 . . . . . . . . Combat Programmer 2 | . . . . . . . . . . . . . . . . . . . . . . 2 Striker 2 | . . . . . . . . . . . . . . . . . . . . 2 . . Alpha 7 2 | . . . . . . . . . . . . . . . . . . 1 . 1 . . Subdweller 2 | . 1 1 . . . . . . . . . . . . . . . . . . . . Samaritan 1 | . . . . . . . . . 1 . . . . . . . . . . . . . Best Kill Streak 14 | 5 8 1 14 3 3 1 13 5 . . 6 4 8 5 4 2 3 4 4 7 7 4 Combat Bots Only 8 | . 3 1 8 3 1 1 8 5 . . 5 1 4 4 3 2 1 3 3 5 7 4 Max Kills in Single Turn 4 | 1 3 1 2 2 1 1 4 1 1 . 2 1 2 2 1 1 1 2 1 2 2 1 Gunslinging . | . . . . . . . . . . . . . . . . . . . . . . . Exploded 4 | . 2 . 1 2 . . 4 1 . . 2 . . . . . . 2 . 1 . . Melee 1 | . . . . 1 . 1 . . . . . . . . . . . 1 . 1 . . Uniques/NPCs Destroyed . | . . . . . . . . . . . . . . . . . . . . . . . Combat | -11 -10 -10 -8 -7 -7 -7 -5 -5 -5 -5 -4 -4 -4 -4 -4 -4 -3 -3 -2 -2 -1 -1 -------- Run | Yrd Mat Sub Mat Fac Sto Rec Fac Upp Upp Zhi Pro Fac Ext Cet Arc Hub Res Qua Res Tes Acc Com Hostile Shots Fired 1844 | . 63 24 156 146 98 8 134 25 . . 39 10 117 15 4 35 82 135 55 151 277 270 Missed 567 | . 13 4 37 48 37 2 58 6 . . 18 5 29 6 3 9 21 34 11 42 98 86 Intercepted 1 | . . . . . . . . . . . . . . . . . . . . . . 1 Hits 1277 | . 50 20 119 98 61 6 76 19 . . 21 5 88 9 1 26 61 101 44 109 179 184 Melee 7 | . . . 4 . 1 . . . . . . . . . . . . . . . . 2 Projectile 1270 | . 50 20 115 98 60 6 76 19 . . 21 5 88 9 1 26 61 101 44 109 179 182 Critical Strikes 76 | . . 3 6 . 1 1 4 . . . 1 . 5 2 . 2 2 10 1 3 10 25 Actively Blocked 37 | . . . . . . . . . . . . . . . . . 1 . . 3 10 23 Part Disruptions 5 | . . . . . . . . . . . . . . . . . . . . . 2 3 Damage Taken 27429 | . 604 338 1896 1234 712 98 1402 307 30 . 576 90 1887 207 21 488 1780 1885 948 2677 4546 5703 Core 3671 | . 113 69 167 149 104 3 160 . . . 88 . 201 19 . 18 226 228 59 443 275 1349 Absorbed by Shields 2000 | . . . . . . 3 285 68 12 . 54 12 274 75 7 177 230 394 409 . . . Ignored by Resistances 722 | . . . . . . . . . . . . . . . . . 362 . . 259 101 . Regen/Repaired (Parts) 9659 | . . . 77 . . . 687 225 101 100 367 11 898 240 189 . 1516 578 1185 1604 1799 82 Core Remaining (%) 65 | 100 . 27 69 . . 63 . . . . 75 . . . . 79 . 54 . 60 . . Volleys Fired 781 | 19 43 17 96 31 16 . 44 11 . 8 20 7 65 8 7 20 72 56 24 54 108 55 Largest 4 | 1 2 2 2 2 1 . 3 2 . 1 1 2 3 1 3 3 3 3 3 4 3 4 Hottest 282 | 20 50 50 60 80 40 . 127 125 . 83 60 235 235 60 193 193 193 169 143 166 282 262 Shots Fired 1408 | 19 70 32 174 48 16 . 88 18 1 8 20 12 138 8 21 56 130 105 35 116 182 111 Gun 786 | 19 58 15 66 . . . 66 14 . 8 . 5 89 . 14 36 90 51 17 86 107 45 Cannon 537 | . 5 17 97 47 16 . 12 . . . . 7 49 . 7 20 40 51 13 19 75 62 Launcher 85 | . 7 . 11 1 . . 10 4 1 . 20 . . 8 . . . 3 5 11 . 4 Special . | . . . . . . . . . . . . . . . . . . . . . . . Kinetic 963 | 19 63 32 161 47 16 . 71 7 . 8 . 12 131 . 14 38 78 93 30 61 35 47 Thermal 326 | . . . 2 . . . 7 7 . . . . 7 . 7 18 20 7 . 44 147 60 Explosive 41 | . 7 . 11 1 . . 10 4 1 . . . . . . . . 3 . . . 4 Electromagnetic 78 | . . . . . . . . . . . 20 . . 8 . . 32 2 5 11 . . Robot Hit Streak 31 | 6 14 16 17 5 3 . 14 11 . 12 11 4 15 . 11 10 28 31 6 12 6 10 Robot Miss Streak 6 | 3 2 3 3 2 3 . 6 3 . . 3 2 5 . 2 2 2 3 2 3 4 5 Penetration Max 1 | . . . . . . . 1 1 . 1 . 1 1 . . 1 1 . 1 1 . 1 Secondary Targets 5 | . . . . . . . 1 . . . . . . . . . 1 . . . 2 1 Max Gunslinging Chain 1 | . . . . . . . 1 . . . . . . . . . 1 . . . 1 1 Capacitor 50 | . . . . . . . . . . . . . . . . . . . 11 . 34 5 Shots Hit Robots 983 | 12 47 20 123 36 20 8 69 15 1 8 11 11 85 . 17 37 85 83 32 87 110 66 Core Hits 578 | 5 32 6 87 14 2 2 87 10 . 4 29 3 41 25 5 14 25 32 30 40 41 44 Critical Kills 20 | . . . . . . . 1 . . 1 . 1 7 . 2 2 2 . . . 3 1 Critical Parts Destroyed 41 | . 1 . . 3 5 . . 1 . . . . 7 . . 3 3 6 . 5 3 4 Critical Strikes 89 | . 1 . 2 5 5 . 1 1 . 1 . 1 16 . 3 5 9 9 1 10 13 6 Meltdown 3 | . . . . . . . . . . . . . 1 . 2 . . . . . . . Destroy 59 | . 1 . . . . . 1 1 . 1 . 1 15 . 1 5 9 7 . 6 6 5 Blast 12 | . . . 2 2 . . . . . . . . . . . . . . . . 7 1 Smash 8 | . . . . 3 5 . . . . . . . . . . . . . . . . . Sever 7 | . . . . . . . . . . . . . . . . . . 2 1 4 . . Melee Attacks 123 | . . . . 25 19 11 . . 1 . . 8 . . 1 . . 20 16 20 2 . Impact 51 | . . . . 25 19 6 . . 1 . . . . . . . . . . . . . Slashing 72 | . . . . . . 5 . . . . . 8 . . 1 . . 20 16 20 2 . Piercing . | . . . . . . . . . . . . . . . . . . . . . . . Sneak Attacks 29 | . . . . . 7 2 . . 1 . . 4 . . 1 . . 3 7 3 1 . Combat Hostiles . | . . . . . . . . . . . . . . . . . . . . . . . Follow-up Attacks 1 | . . . . . . 1 . . . . . . . . . . . . . . . . Damage Inflicted 40007 | 150 1159 254 2872 1526 1112 420 3927 689 94 275 1251 630 2749 1090 596 1297 2375 3572 1998 3128 4417 4426 Guns 12962 | 148 431 76 436 . . . 1260 335 . 275 . 108 1337 . 302 795 1798 836 294 1278 2199 1054 Cannons 11133 | . 94 178 1312 548 143 . 161 . . . . 133 1410 . 168 490 434 1657 246 377 2092 1690 Explosions 10910 | . 617 . 1110 405 . . 2506 354 . . 1251 . . 1090 . . . 447 679 782 . 1669 Melee 4799 | . . . . 573 969 420 . . 94 . . 389 . . 126 . . 632 779 691 126 . Ramming 203 | 2 17 . 14 . . . . . . . . . 2 . . 12 143 . . . . 13 Kinetic 16133 | 148 525 254 1748 548 143 . 1257 239 . 275 . 241 2622 . 302 1009 1295 2078 540 851 900 1158 Thermal 7926 | . . . . 224 . . 290 96 . . 66 . 125 . 168 276 421 365 . 918 3391 1586 Explosive 6758 | . 617 . 1110 181 . . 2380 354 . . . . . . . . . 447 . . . 1669 Electromagnetic 4188 | . . . . . . . . . . . 1185 . . 1090 . . 516 50 679 668 . . Impact 1816 | . . . . 573 969 180 . . 94 . . . . . . . . . . . . . Slashing 2983 | . . . . . . 240 . . . . . 389 . . 126 . . 632 779 691 126 . Piercing . | . . . . . . . . . . . . . . . . . . . . . . . Highest Corruption 42 | . . . . 2 5 5 3 6 6 6 6 1 2 3 3 . 4 22 4 14 11 42 Average Corruption 5 | . . . . 1 2 5 1 3 6 6 6 1 1 2 2 . 4 9 3 8 5 22 Corruption Purged 3 | . . . . . . . . . . . . . . . 3 . . . . . . . Corruption Blocked . | . . . . . . . . . . . . . . . . . . . . . . . Effects 244 | . . . . 3 4 50 7 12 13 5 9 2 9 5 1 . 21 44 7 19 11 22 Message Errors 61 | . . . . . . 11 1 4 3 1 . . 3 3 . . 8 10 5 4 3 5 Matter Fused 68 | . . . . 1 . 16 5 3 4 1 6 1 2 . . . 4 12 2 7 1 3 Heat Flow Errors 23 | . . . . . 1 6 . 1 . . 1 . 1 1 1 . 2 5 . 3 1 . Energy Discharges 35 | . . . . . 1 10 . 3 2 2 1 1 1 1 . . 3 5 . 1 4 . Parts Rejected 5 | . . . . 1 . . . . . . . . . . . . 1 . . . . 3 Parts Fused 1 | . . . . . . 1 . . . . . . . . . . . . . . . . Data Loss (minor) 24 | . . . . . 2 4 . 1 3 1 . . 1 . . . 3 4 . 1 . 4 Data Loss (major) 8 | . . . . 1 . 1 1 . . . 1 . . . . . . 3 . . 1 . Misfires 1 | . . . . . . . . . 1 . . . . . . . . . . . . . Alerts 4 | . . . . . . 1 . . . . . . . . . . . 1 . 2 . . Misdirections 1 | . . . . . . . . . . . . . . . . . . . . . . 1 Weapon Failures 13 | . . . . . . . . . . . . . 1 . . . . 4 . 1 1 6 Overload Shots . | . . . . . . . . . . . . . . . . . . . . . . . Overflow Damage 1873 | . 30 . 10 236 383 84 51 . 9 . 5 128 . 11 . . 58 333 272 137 75 51 Projectiles 303 | . . . . 3 . . . . . . . 31 . . . . 18 199 . 13 30 9 Explosions 172 | . 30 . 10 13 . . 51 . . . 5 . . 11 . . . 1 9 . . 42 Melee 1398 | . . . . 220 383 84 . . 9 . . 97 . . . . 40 133 263 124 45 . Knockbacks 62 | . 1 5 14 3 7 . . . . . . 2 5 . . 2 1 12 . . . 10 Impact 6 | . . . . 2 4 . . . . . . . . . . . . . . . . . Kinetic 56 | . 1 5 14 1 3 . . . . . . 2 5 . . 2 1 12 . . . 10 Secondary . | . . . . . . . . . . . . . . . . . . . . . . . Self-Inflicted Damage 1037 | . 2 . 67 57 . . 29 . 43 . 200 . . 47 . . . . 113 234 . 245 Shots 61 | . 1 . 5 1 . . 1 . 1 . 17 . . 4 . . . . 9 18 . 4 Rammed 12 | 1 5 . 2 . . . . . . . . . 1 . . . . . . . . 3 Targets Rammed 23 | 2 6 . 3 . . . . . . . . . 1 . . 1 5 . . . . 5 Kicked 8 | . . . . . . . . . . . . . . . . 1 5 . . . . 2 Crushed 3 | 1 1 . 1 . . . . . . . . . . . . . . . . . . . Highest Temperature 577 | . 24 12 76 144 195 251 362 228 . 176 224 366 449 167 224 229 180 235 280 577 429 451 Average Temperature 104 | . 9 10 22 68 90 104 102 109 . 88 34 177 117 89 58 100 45 93 98 223 121 79 Received Heat Transfer 3154 | . 255 204 819 159 195 6 244 . . . 51 . 290 . 6 60 333 84 34 153 63 198 Effects 21 | . . . . . . . 1 . . . . . 4 . . . . . . 13 3 . Shutdowns 4 | . . . . . . . . . . . . . . . . . . . . 2 2 . Energy Bleed 3 | . . . . . . . . . . . . . 1 . . . . . . 1 1 . Interference 6 | . . . . . . . 1 . . . . . 2 . . . . . . 3 . . Matter Decay 1 | . . . . . . . . . . . . . . . . . . . . 1 . . Short Circuit 2 | . . . . . . . . . . . . . . . . . . . . 2 . . Damage (minor) 3 | . . . . . . . . . . . . . 1 . . . . . . 2 . . Damage (major) 1 | . . . . . . . . . . . . . . . . . . . . 1 . . Damage (core) 1 | . . . . . . . . . . . . . . . . . . . . 1 . . Siege Activations . | . . . . . . . . . . . . . . . . . . . . . . . Martial Activations . | . . . . . . . . . . . . . . . . . . . . . . . Shielding Activations . | . . . . . . . . . . . . . . . . . . . . . . . Robots Disrupted 4 | . . . . . . . . . . . 1 . . 2 . . . . . 1 . . Combat Hostiles 4 | . . . . . . . . . . . 1 . . 2 . . . . . 1 . . Robots Corrupted 36 | . . . . 1 6 1 . . 1 . 9 . . 8 . . 3 . 4 3 . . Combat Hostiles 27 | . . . . 1 3 1 . . . . 7 . . 7 . . 1 . 4 3 . . Parts Fried 47 | . . . . 1 4 . . . . . 13 . . 10 . . 2 . 7 10 . . Impact Corruptions 31 | . . . . 8 12 5 . . 3 . . . . . . . 3 . . . . . Robots Melted 3 | . . . . . . . . . . . . . 1 . 2 . . . . . . . Combat Hostiles 3 | . . . . . . . . . . . . . 1 . 2 . . . . . . . Parts Melted 14 | . . . . 1 . . . 2 . . . . 1 . 1 1 . . . 2 6 . Heat Transferred 8200 | . . . . 150 . . 346 370 . . 50 . 148 . 166 444 629 259 . 1170 3367 1101 Parts Sabotaged 1 | . . . . . . . . . . . . . . . . . . . . . . 1 Parts Stolen . | . . . . . . . . . . . . . . . . . . . . . . . Parts Stripped . | . . . . . . . . . . . . . . . . . . . . . . . Power Chain Reactions 5 | . . . . . . . . . . . 3 . . . . . . . . 2 . . Alert | -11 -10 -10 -8 -7 -7 -7 -5 -5 -5 -5 -4 -4 -4 -4 -4 -4 -3 -3 -2 -2 -1 -1 ------- Run | Yrd Mat Sub Mat Fac Sto Rec Fac Upp Upp Zhi Pro Fac Ext Cet Arc Hub Res Qua Res Tes Acc Com Maximum Alert Level 4 | . 1 . 1 1 . . 3 . . . . . 1 2 1 4 2 1 . . 2 2 Low Security (%) 56 | 100 96 . 41 82 100 100 35 . . . . 100 45 8 54 7 . 9 100 100 29 . Level 1 27 | . 3 . 58 17 . . 28 . . . . . 54 89 45 16 3 90 . . 20 79 Level 2 13 | . . . . . . . 2 . . . . . . 1 . 23 96 . . . 50 20 Level 3 2 | . . . . . . . 33 . . . . . . . . 49 . . . . . . Level 4 . | . . . . . . . . . . . . . . . . 3 . . . . . . Level 5 . | . . . . . . . . . . . . . . . . . . . . . . . High Security . | . . . . . . . . . . . . . . . . . . . . . . . Max Security . | . . . . . . . . . . . . . . . . . . . . . . . Peak Influence 1134 | 15 221 . 313 233 146 118 865 . . . . 43 375 401 301 1134 641 342 162 199 472 491 Initial 577 | . 3 . . . 70 52 250 . . . . 43 11 98 132 25 577 219 162 30 43 268 Average 204 | 3 101 . 160 103 27 16 387 . . . . 27 209 294 187 741 520 247 106 97 305 341 Influence Increases 10343 | 25 482 50 825 518 384 289 1415 100 . 10 285 82 920 363 229 1375 388 549 272 423 836 523 Destroy 0b10 Robot/C 4540 | . 260 40 560 200 60 80 460 80 . . 220 20 480 160 80 400 120 280 120 200 500 220 Destroy 0b10 Robot/NC 440 | 25 25 . 65 5 25 5 40 . . 10 10 15 50 10 5 20 35 10 40 15 25 5 Destroy Leader 818 | . 46 10 118 72 22 . 114 20 . . 10 10 46 . . 82 64 30 40 14 80 40 Allied During Kill 1203 | . . . . . . 41 262 . . . . . 180 170 85 364 21 . . . 80 . Successful Hack 304 | . 41 . 24 22 26 42 7 . . . . . 27 7 . 20 . 16 21 17 7 27 Select Force Hacks 170 | . . . . . . 120 . . . . . . . . . 50 . . . . . . Disable Machine 645 | . 15 . 15 120 15 . 45 . . . . 15 15 . 45 165 45 105 15 30 . . Anti-Garrison Action 200 | . . . . . . . . . . . . . . . . 200 . . . . . . Destroy Structure 1173 | . 35 . 43 69 11 1 222 . . . . 22 92 16 14 74 88 108 36 87 114 141 Advance Influence 250 | . . . . . . . 250 . . . . . . . . . . . . . . . Partial Spotted 75 | . . . . . . . . . . . . . 15 . . . . . . 30 . 30 Lose Combat Pursuer 525 | . 60 . . 30 225 . 15 . . . 45 . 15 . . . 15 . . 30 30 60 Influence Decreases 9982 | 20 435 102 825 361 405 425 556 543 294 132 216 126 768 209 485 350 1097 650 508 405 489 581 Entered New Map 2115 | . 2 26 . . 87 84 . 319 80 122 . 26 14 79 199 50 523 172 128 24 29 151 Time Decay 5932 | 20 403 66 440 331 189 284 386 214 214 10 216 90 464 130 246 140 534 458 350 267 330 150 Lost Part 877 | . 30 10 110 20 57 10 20 10 . . . 10 40 . . . 20 20 30 80 130 280 Lost Ally 500 | . . . . 10 . . 150 . . . . . 100 . 40 160 20 . . 20 . . Purge Threat 558 | . . . 275 . 72 47 . . . . . . 150 . . . . . . 14 . . Squads Dispatched 55 | . 2 . 7 5 2 . 3 . . . . . 2 . . 5 6 3 3 9 5 3 Investigation 6 | . 1 . . . . . . . . . . . . . . 2 . . . 1 1 1 Extermination 12 | . . . . 2 1 . 1 . . . . . . . . . . 2 2 2 1 1 Reinforcement 29 | . 1 . 4 3 1 . 1 . . . . . 2 . . 3 6 1 1 3 3 . Assault 4 | . . . 2 . . . 1 . . . . . . . . . . . . . . 1 Garrison 4 | . . . 1 . . . . . . . . . . . . . . . . 3 . . Intercept . | . . . . . . . . . . . . . . . . . . . . . . . Searches Triggered . | . . . . . . . . . . . . . . . . . . . . . . . Construction Impeded 4 | . . . 1 1 . . . . . . . . . . . 1 . . . . 1 . Haulers Reinforced 6 | . . . . 1 . . . . . . . . . . . . 3 . . 1 1 . Active Scanning Responses . | . . . . . . . . . . . . . . . . . . . . . . . Cargo Convoy Interrupts 1 | . . . . . . . 1 . . . . . . . . . . . . . . . Stealth | -11 -10 -10 -8 -7 -7 -7 -5 -5 -5 -5 -4 -4 -4 -4 -4 -4 -3 -3 -2 -2 -1 -1 --------- Run | Yrd Mat Sub Mat Fac Sto Rec Fac Upp Upp Zhi Pro Fac Ext Cet Arc Hub Res Qua Res Tes Acc Com Distress Signals 21 | . 3 . 5 . 1 2 . . . . . . 1 2 . 2 5 . . . . . Communications Jammed 63 | . . . . . . . 33 . . . . 9 5 . . . . 2 6 3 . 5 Distress Signals 57 | . . . . . . . 33 . . . . 9 5 . . . . . 3 2 . 5 Times Spotted 337 | . 22 4 45 15 16 5 26 3 . . 12 3 31 7 4 20 13 19 9 21 31 31 Peak Tracking Total 13 | . 3 2 7 4 13 2 10 2 . . 5 2 4 5 1 7 4 3 3 5 6 13 Tactical Retreats 18 | . 3 . . 2 5 . 1 . . . 1 . 1 . . . 1 . . 1 2 1 Traps | -11 -10 -10 -8 -7 -7 -7 -5 -5 -5 -5 -4 -4 -4 -4 -4 -4 -3 -3 -2 -2 -1 -1 ------- Run | Yrd Mat Sub Mat Fac Sto Rec Fac Upp Upp Zhi Pro Fac Ext Cet Arc Hub Res Qua Res Tes Acc Com Traps Triggered 15 | . 2 . . 2 . . 1 . . . . . 2 . . . 3 2 2 1 . . Indirectly 1 | . . . . . . . . . . . . . . . . . . . . 1 . . Trap Hack Attempts . | . . . . . . . . . . . . . . . . . . . . . . . Triggered . | . . . . . . . . . . . . . . . . . . . . . . . Disarmed . | . . . . . . . . . . . . . . . . . . . . . . . Reprogrammed . | . . . . . . . . . . . . . . . . . . . . . . . Reused . | . . . . . . . . . . . . . . . . . . . . . . . Traps Extracted . | . . . . . . . . . . . . . . . . . . . . . . . Installed . | . . . . . . . . . . . . . . . . . . . . . . . Triggered . | . . . . . . . . . . . . . . . . . . . . . . . Machines | -11 -10 -10 -8 -7 -7 -7 -5 -5 -5 -5 -4 -4 -4 -4 -4 -4 -3 -3 -2 -2 -1 -1 ---------- Run | Yrd Mat Sub Mat Fac Sto Rec Fac Upp Upp Zhi Pro Fac Ext Cet Arc Hub Res Qua Res Tes Acc Com Machines Disabled 46 | . 1 . 1 8 1 . 3 . . 1 . 1 1 . 3 11 3 8 1 3 . . Max in Single Turn 7 | . 1 . 1 7 1 . 3 . . 1 . 1 1 . 2 1 1 1 1 1 . . Garrison Access 7 | . . . 1 1 . . 1 . . . . . . . . 1 1 . 1 . 1 . Network Hub 1 | . . . . . . . . . . . . . . . . 1 . . . . . . Machines Repaired . | . . . . . . . . . . . . . . . . . . . . . . . Machines Dismantled . | . . . . . . . . . . . . . . . . . . . . . . . Machines Sabotaged 1 | . . . . . . . . . . . . . . . . 1 . . . . . . Overloaded Fab Kills . | . . . . . . . . . . . . . . . . . . . . . . . Hacking | -11 -10 -10 -8 -7 -7 -7 -5 -5 -5 -5 -4 -4 -4 -4 -4 -4 -3 -3 -2 -2 -1 -1 --------- Run | Yrd Mat Sub Mat Fac Sto Rec Fac Upp Upp Zhi Pro Fac Ext Cet Arc Hub Res Qua Res Tes Acc Com Machines Accessed 93 | . 7 . 11 6 4 10 3 1 . 4 . 3 6 1 . 6 5 8 5 5 6 2 Terminals 64 | . 7 . 8 4 4 5 1 . . . . 2 6 1 . 5 2 7 3 3 5 1 Fabricators 4 | . . . . . . . 1 . . . . . . . . . 2 . . 1 . . Repair Stations 2 | . . . 1 . . . . . . . . 1 . . . . . . . . . . Recycling Units 8 | . . . 1 1 . 4 . . . . . . . . . . . . 1 . . 1 Scanalyzers 3 | . . . 1 . . . . . . . . . . . . . . 1 . 1 . . Garrison Access 6 | . . . . 1 . . 1 . . . . . . . . 1 1 . 1 . 1 . Total Hacks 301 | . 17 . 28 15 29 53 11 1 . 17 . 5 13 2 . 19 16 17 10 26 15 7 Successful 149 | . 12 . 19 5 13 35 3 1 . 17 . 3 8 1 . 7 3 6 4 7 4 1 Failed 149 | . 5 . 8 10 15 17 8 . . . . 2 5 1 . 12 13 11 6 19 11 6 Catastrophic 34 | . 1 . . 1 3 1 2 . . . . 1 2 . . 4 4 2 3 6 1 3 Database Lockouts 3 | . . . 1 . 1 1 . . . . . . . . . . . . . . . . Manual 176 | . 16 . 18 6 23 35 8 . . . . 1 8 1 . 10 13 5 2 21 2 7 Terminals 229 | . 17 . 22 10 29 46 6 . . . . 2 13 2 . 15 9 16 8 19 13 2 Fabricators 12 | . . . . . . . 3 . . . . . . . . . 6 . . 3 . . Repair Stations 5 | . . . 2 . . . . . . . . 3 . . . . . . . . . . Recycling Units 14 | . . . 1 2 . 5 . . . . . . . . . . . . 1 . . 5 Scanalyzers 8 | . . . 3 . . . . . . . . . . . . . . 1 . 4 . . Garrison Access 13 | . . . . 3 . . 2 . . . . . . . . 4 1 . 1 . 2 . Terminal Hacks 97 | . 4 . 11 3 8 25 . 1 . 17 . 1 6 1 . 3 2 6 2 4 3 . Record 10 | . . . . . . . . . . 5 . . . . . . . 4 1 . . . Part Schematic 6 | . . . . . . 2 . . . 4 . . . . . . . . . . . . Robot Analysis 7 | . 2 . . . . 1 . . . 4 . . . . . . . . . . . . Prototype ID Bank 26 | . 1 . 5 1 1 12 . . . 4 . . 2 . . . . . . . . . Open Door 11 | . . . . . 1 . . 1 . . . 1 3 1 . . . 1 . . 3 . Level Access Points 1 | . . . . . . . . . . . . . . . . . . . . 1 . . Branch Access Points 3 | . . . 1 1 . . . . . . . . . . . . 1 . . . . . Terminal Index 2 | . 1 . . . 1 . . . . . . . . . . . . . . . . . Garrison Index 1 | . . . . . . 1 . . . . . . . . . . . . . . . . Alert Level 1 | . . . . . . . . . . . . . . . . 1 . . . . . . Unreport Threat 9 | . . . 3 . 2 2 . . . . . . 1 . . . . . . 1 . . Locate Traps 6 | . . . 1 . 1 2 . . . . . . . . . . . 1 . 1 . . Patrol Status 1 | . . . . . 1 . . . . . . . . . . . . . . . . . Recall Extermination 1 | . . . . . . . . . . . . . . . . . . . 1 . . . Recall Reinforcements 1 | . . . . 1 . . . . . . . . . . . . . . . . . . Hauler Manifests 2 | . . . . . 1 1 . . . . . . . . . . . . . . . . Registered Components 1 | . . . . . . 1 . . . . . . . . . . . . . . . . Zone Layout 6 | . . . 1 . . 1 . . . . . . . . . 2 1 . . 1 . . Release Object 2 | . . . . . . 2 . . . . . . . . . . . . . . . . Fabricator Hacks 1 | . . . . . . . 1 . . . . . . . . . . . . . . . Network Status 1 | . . . . . . . 1 . . . . . . . . . . . . . . . Repair Station Hacks 4 | . . . 2 . . . . . . . . 2 . . . . . . . . . . Scan Component 2 | . . . 1 . . . . . . . . 1 . . . . . . . . . . Repair 2 | . . . 1 . . . . . . . . 1 . . . . . . . . . . Recycling Unit Hacks 2 | . . . 1 . . 1 . . . . . . . . . . . . . . . . Retrieve Components 2 | . . . 1 . . 1 . . . . . . . . . . . . . . . . Scanalyzer 4 | . . . 3 . . . . . . . . . . . . . . . . 1 . . Insert Component 3 | . . . 2 . . . . . . . . . . . . . . . . 1 . . Analyze 1 | . . . 1 . . . . . . . . . . . . . . . . . . . Garrison Access Hacks 5 | . . . . 1 . . 1 . . . . . . . . . 1 . 1 . 1 . Seal Access 5 | . . . . 1 . . 1 . . . . . . . . . 1 . 1 . 1 . Unauthorized Hacks 36 | . 8 . 2 1 5 9 1 . . . . . 2 . . 4 . . 1 2 . 1 Terminals 28 | . 8 . 2 1 5 5 . . . . . . 2 . . 3 . . 1 1 . . Assimilate 2 | . . . 1 . 1 . . . . . . . . . . . . . . . . . Botnet 11 | . 1 . 1 1 1 1 . . . . . . 2 . . 2 . . 1 1 . . Operators 3 | . 1 . . . 1 1 . . . . . . . . . . . . . . . . Skim 11 | . 6 . . . 2 3 . . . . . . . . . . . . . . . . Sabotage 1 | . . . . . . . . . . . . . . . . 1 . . . . . . Fabricators 1 | . . . . . . . 1 . . . . . . . . . . . . . . . Fabnet 1 | . . . . . . . 1 . . . . . . . . . . . . . . . Repair Stations . | . . . . . . . . . . . . . . . . . . . . . . . Recycling Units 5 | . . . . . . 4 . . . . . . . . . . . . . . . 1 Mask 1 | . . . . . . . . . . . . . . . . . . . . . . 1 Tunnel 4 | . . . . . . 4 . . . . . . . . . . . . . . . . Scanalyzers 1 | . . . . . . . . . . . . . . . . . . . . 1 . . Researchers 1 | . . . . . . . . . . . . . . . . . . . . 1 . . Garrison Access 1 | . . . . . . . . . . . . . . . . 1 . . . . . . Jam 1 | . . . . . . . . . . . . . . . . 1 . . . . . . Data Cores Recovered 2 | . . . 1 . . . . . . . . . . . . . . . . . 1 . Used . | . . . . . . . . . . . . . . . . . . . . . . . Hacking Detections 67 | . 7 . 9 5 3 6 3 . . . . 1 4 . . 5 4 4 4 5 5 2 Full Trace Events 4 | . . . . . . 1 . . . . . . . . . . . . . 1 1 1 Feedback Events 1 | . . . . . . . . . . . . . . . . . . . . . 1 . Hackware Fried 1 | . . . . . . . . . . . . . . . . . . . . . 1 . Feedback Blocked . | . . . . . . . . . . . . . . . . . . . . . . . Robot Schematics Acquired . | . . . . . . . . . . . . . . . . . . . . . . . Robots Built . | . . . . . . . . . . . . . . . . . . . . . . . Authchips . | . . . . . . . . . . . . . . . . . . . . . . . Time . | . . . . . . . . . . . . . . . . . . . . . . . Total Robot Build Rating . | . . . . . . . . . . . . . . . . . . . . . . . Part Schematics Acquired 8 | . . . 1 . . 2 . . . 4 . . . . . . . . . 1 . . Parts Built . | . . . . . . . . . . . . . . . . . . . . . . . Authchips . | . . . . . . . . . . . . . . . . . . . . . . . Time . | . . . . . . . . . . . . . . . . . . . . . . . Total Part Build Rating . | . . . . . . . . . . . . . . . . . . . . . . . Parts Repaired 2 | . . . 1 . . . . . . . . 1 . . . . . . . . . . Time 76 | . . . 26 . . . . . . . . 50 . . . . . . . . . . Parts Recycled . | . . . . . . . . . . . . . . . . . . . . . . . Recycled Matter . | . . . . . . . . . . . . . . . . . . . . . . . Retrieved Matter . | . . . . . . . . . . . . . . . . . . . . . . . Retrieved Components 1 | . . . 1 . . . . . . . . . . . . . . . . . . . Parts Scanalyzed 1 | . . . 1 . . . . . . . . . . . . . . . . . . . Part Schematics Acquired 1 | . . . 1 . . . . . . . . . . . . . . . . . . . Parts Damaged . | . . . . . . . . . . . . . . . . . . . . . . . Bothacking | -11 -10 -10 -8 -7 -7 -7 -5 -5 -5 -5 -4 -4 -4 -4 -4 -4 -3 -3 -2 -2 -1 -1 ------------ Run | Yrd Mat Sub Mat Fac Sto Rec Fac Upp Upp Zhi Pro Fac Ext Cet Arc Hub Res Qua Res Tes Acc Com Used RIF Installer . | . . . . . . . . . . . . . . . . . . . . . . . Robots Hacked . | . . . . . . . . . . . . . . . . . . . . . . . Non-combat . | . . . . . . . . . . . . . . . . . . . . . . . Combat . | . . . . . . . . . . . . . . . . . . . . . . . Robot Hacks Applied . | . . . . . . . . . . . . . . . . . . . . . . . Relay Couplers Released 3 | . . . 3 . . . . . . . . . . . . . . . . . . . Machine Destruction 3 | . . . 3 . . . . . . . . . . . . . . . . . . . Fabnet Peak Effective % 3 | . . . . . . . . . . . 3 3 3 3 3 3 1 1 . . . . Robots Rewired 26 | . . . . . . 11 1 . . . . . 13 . . . . . . 1 . . Allies Hacked 1 | . . . . . . . 1 . . . . . . . . . . . . . . . Hacks Repelled . | . . . . . . . . . . . . . . . . . . . . . . . Allies | -11 -10 -10 -8 -7 -7 -7 -5 -5 -5 -5 -4 -4 -4 -4 -4 -4 -3 -3 -2 -2 -1 -1 -------- Run | Yrd Mat Sub Mat Fac Sto Rec Fac Upp Upp Zhi Pro Fac Ext Cet Arc Hub Res Qua Res Tes Acc Com Total Allies 38 | . . . 1 . . 11 1 . . . . . 16 5 . . . . . 1 3 . Largest Group 15 | . . . 1 1 . 10 10 . . . . . 10 15 14 11 1 . . 1 3 . Highest-Rated Group 975 | . . . 10 10 . 278 275 . . . . . 547 975 948 655 96 . . 112 379 . Highest-Rated Ally 159 | . . . 10 10 . 40 40 . . . . . 159 159 159 96 96 . . 112 135 . Total Orders . | . . . . . . . . . . . . . . . . . . . . . . . Ally Attacks 321 | . . . . . . 17 43 . . . . . 88 7 13 111 7 . . 2 33 . Total Damage 11888 | . . . . . . 367 1222 . . . . . 2993 294 532 4382 342 . . 52 1704 . Kills 56 | . . . . . . 4 8 . . . . . 14 1 2 19 1 . . . 7 . Allies Corrupted 1 | . . . . . . . . . . . . . . . . . . . . 1 . . Allies Melted . | . . . . . . . . . . . . . . . . . . . . . . . Intel | -11 -10 -10 -8 -7 -7 -7 -5 -5 -5 -5 -4 -4 -4 -4 -4 -4 -3 -3 -2 -2 -1 -1 ------- Run | Yrd Mat Sub Mat Fac Sto Rec Fac Upp Upp Zhi Pro Fac Ext Cet Arc Hub Res Qua Res Tes Acc Com Active Infowar (turns) 9487 | 10 783 208 428 868 497 19 586 . . . . 123 971 . . . 1388 1159 786 608 748 305 Optics 1247 | . . . . . . . . . . . . . . . . . . . . 194 748 305 Sensors 2625 | . . . . . . . . . . . . . 2 . . . . 1009 786 488 340 . Terrain 3701 | . . 208 428 867 497 19 . . . . . . . . . . 942 329 411 . . . Seismic 1055 | 10 783 . . . . . . . . . . . . . . . . . . . 262 . Cloaking 596 | . . . . . . . . . . . . . . . . . . . 330 266 . . Jamming 5355 | . . . . 23 . . 586 . . . . 123 969 . . . 1101 1159 786 218 158 232 ECM 17 | . . . . . . . . . . . . . . . . . . 17 . . . . Robot Analysis Total 7 | . 2 . . . . 1 . . . 4 . . . . . . . . . . . . Derelict Logs Recovered 4 | . . 1 . . . . . 1 1 . 1 . . . . . . . . . . . Drone Launches . | . . . . . . . . . . . . . . . . . . . . . . . Drone Recoveries . | . . . . . . . . . . . . . . . . . . . . . . . Exploration | -11 -10 -10 -8 -7 -7 -7 -5 -5 -5 -5 -4 -4 -4 -4 -4 -4 -3 -3 -2 -2 -1 -1 ------------- Run | Yrd Mat Sub Mat Fac Sto Rec Fac Upp Upp Zhi Pro Fac Ext Cet Arc Hub Res Qua Res Tes Acc Com Turns Passed 17108 | 109 1110 384 1841 911 606 2101 905 458 442 179 525 184 1160 260 524 295 1506 1159 786 608 748 307 Spaces Moved 10280 | 39 498 201 987 545 345 1097 477 400 476 158 503 88 787 185 108 246 1094 532 403 431 447 233 Core 93 | 4 . . . . 1 79 . . . . . . . . . . . . . . . 9 Treads 2728 | 35 498 201 807 . . 272 . . . . . . 454 1 75 . . 301 . 84 . . Legs 5898 | . . . 180 545 344 712 255 69 476 158 196 88 333 184 33 246 1094 152 297 88 224 224 Wheels 57 | . . . . . . 34 23 . . . . . . . . . . . . . . . Hover 1504 | . . . . . . . 199 331 . . 307 . . . . . . 79 106 259 223 . Flight . | . . . . . . . . . . . . . . . . . . . . . . . Fastest Speed 50 | 50 160 160 130 130 130 85 85 92 92 92 92 92 92 97 91 91 91 97 113 61 51 50 Average Speed 124 | 148 160 160 148 130 140 173 157 105 92 92 92 92 96 97 95 91 109 164 153 75 66 70 Slowest Speed 600 | 160 160 160 200 130 500 600 166 159 92 92 92 92 97 97 97 91 117 190 199 114 74 450 Overloaded Moves . | . . . . . . . . . . . . . . . . . . . . . . . Propulsion Burnouts . | . . . . . . . . . . . . . . . . . . . . . . . Robots Hopped . | . . . . . . . . . . . . . . . . . . . . . . . Potential Cave-ins 8 | . . . . . . . . . . . . . . . . . 1 4 . 3 . . Cave-ins Triggered 1 | . . . . . . . . . . . . . . . . . 1 . . . . . Teleports 3 | . . . . . . . . . . . . . . . . . . 2 . 1 . . Exploration Rate (%) 46 | 5 96 11 86 20 42 97 17 58 61 60 61 4 87 66 72 33 35 61 14 50 10 13 Regions Visited 22 Branch Regions 14 Pre-discovered Areas 8 | . . 1 . . . 4 . . . 3 . . . . . . . . . . . . Known Exits Taken 9 | . . 1 1 1 1 . . . . . . 1 . . . . 1 . 1 1 1 . Unknown Exits Taken 13 | 1 1 . . . . 1 1 1 1 1 1 . 1 1 1 1 . 1 . . . . Scrap Searched 7 | . . . . . . . . 2 . . 5 . . . . . . . . . . . Spaces Dug 65 | . . . . 5 7 1 . . . . . 3 . . . 2 19 7 9 11 1 . Terrain Destroyed 758 | . 34 . 45 86 12 1 157 60 23 . 15 11 33 . 6 17 40 92 14 38 27 47 Melee 13 | . . . . 1 2 1 . . . . . 1 . . . . . 1 4 3 . . Projectile 242 | . . . . 19 10 . 9 4 . . . 10 33 . 6 17 40 36 10 9 27 12 AOE 503 | . 34 . 45 66 . . 148 56 23 . 15 . . . . . . 55 . 26 . 35 Terrain Rammed . | . . . . . . . . . . . . . . . . . . . . . . . Walls Destroyed . | . . . . . . . . . . . . . . . . . . . . . . . Machines Disabled . | . . . . . . . . . . . . . . . . . . . . . . . Actions | -11 -10 -10 -8 -7 -7 -7 -5 -5 -5 -5 -4 -4 -4 -4 -4 -4 -3 -3 -2 -2 -1 -1 --------- Run | Yrd Mat Sub Mat Fac Sto Rec Fac Upp Upp Zhi Pro Fac Ext Cet Arc Hub Res Qua Res Tes Acc Com Total 13217 | 66 738 234 1206 655 420 1286 557 416 478 183 543 166 1069 256 513 276 1295 675 523 585 763 314 Wait 1311 | . 165 11 30 29 39 56 3 1 . . 3 59 107 62 390 3 86 11 54 25 171 6 Move 10258 | 39 497 200 986 544 344 1096 476 399 475 157 502 87 786 184 107 245 1092 531 402 430 446 233 Hop . | . . . . . . . . . . . . . . . . . . . . . . . Pick Up 89 | . 13 3 20 4 1 5 5 3 . 2 2 1 4 . 1 . 4 9 1 2 5 4 Fast Attach 96 | 6 . 1 10 4 . 3 4 . . 8 3 1 2 . 2 2 12 11 6 5 12 4 Attach 68 | . 4 1 13 3 . 5 3 1 1 . 1 1 1 . . . 5 5 6 6 8 4 Detach 19 | . . . 1 1 . 3 . . 1 1 . . 1 . . . 2 1 3 2 3 . Swap 94 | 1 10 1 21 7 1 . 1 1 . . 6 1 . 2 1 1 4 14 7 14 1 . Drop 120 | . . . 26 7 . 13 6 . . 7 6 1 2 . 4 2 12 17 4 4 6 3 Fire 781 | 19 43 17 96 31 16 . 44 11 . 8 20 7 65 8 7 20 72 56 24 54 108 55 Melee 121 | . . . . 25 19 9 . . 1 . . 8 . . 1 . . 20 16 20 2 . Ram 3 | . . . . . . . . . . . . . . . . . . . . . . 3 Kick 8 | . . . . . . . . . . . . . . . . 1 5 . . . . 2 Crush 11 | 1 6 . 3 . . . . . . . . . 1 . . . . . . . . . Escape Stasis 3 | . . . . . . . . . . . . . 2 . . . 1 . . . . . Rewire 235 | . . . . . . 96 15 . . . . . 98 . . 2 . . . 23 1 . Trap . | . . . . . . . . . . . . . . . . . . . . . . . Miscellaneous . | . . . . . . . . . . . . . . . . . . . . . . . Route ------- -11/Scrapyard -10/Materials (discovered 6 exits: [*Mat x3] / [*Min x2] / [*Sub]) -10/Subcaves (discovered 3 exits: *Mat x2 / Rec) -8/Materials (discovered 3 exits: *Fac x3) -7/Factory (discovered 4 exits: [*Fac] / *Sto / *Low x2) -7/Storage -7/Recycling -5/Factory (discovered 2 exits: *Fac / *Upp) -5/Upper Caves -5/Upper Caves -5/Zhirov -4/Proximity Caves -4/Factory (discovered 3 exits: Upp / *Ext x2) -4/Extension (discovered 2 exits: *Res / *Cet) -4/Cetus (discovered 2 exits: *Res / [*Arc]) -4/Archives (discovered 3 exits: *Res / *Hub x2) -4/Hub_04(d) (discovered 2 exits: *Res x2) -3/Research (discovered 4 exits: *Res x2 / *Qua x2) -3/Quarantine -2/Research (discovered 2 exits: *Acc / *Tes) -2/Testing -1/Access (discovered 2 exits: Sur / *Com) -1/Command History --------- Turn | Location | Event 7 | -11/Scrapyard | Discovered new exit (range 14) 110 | -11/Scrapyard | Entered Materials 287 | -10/Materials | Discovered new exit (range 16) 312 | -10/Materials | Build established: Mutant 398 | -10/Materials | Discovered new exit (range 15) 546 | -10/Materials | Discovered new exit (range 9) 648 | -10/Materials | Discovered new exit (range 8) 710 | -10/Materials | Derelicts attacked the area 829 | -10/Materials | Discovered new exit (range 13) 921 | -10/Materials | Learned Recycling recycling unit intel 942 | -10/Materials | Lost 3 parts (1p1u1w) 1021 | -10/Materials | Learned Storage stockpile data 1041 | -10/Materials | Discovered new exit (range 10) 1083 | -10/Materials | Learned location of 2 exits from Materials 1101 | -10/Materials | Learned location of 2 exits from Subcaves 1128 | -10/Materials | Learned Storage trap positions 1218 | -10/Materials | Learned location of 2 exits from Subcaves 1220 | -10/Materials | Entered Subcaves 1220 | -10/Subcaves | Learned location of Zion (-7) 1221 | -10/Subcaves | Identified exit to Recycling 1222 | -10/Subcaves | Identified exit to Materials 1277 | -10/Subcaves | Core integrity fell below 50% 1604 | -10/Subcaves | Entered Materials 1604 | -8/Materials | Evolved 4 slots: Propulsion x2, Utility x2 1605 | -8/Materials | Identified exit to Factory 1717 | -8/Materials | Build established: Scavenger-Mutant 1736 | -8/Materials | Garrison activated, responded to threat 1977 | -8/Materials | Destroyed 8 combat bots 2063 | -8/Materials | Lost 3 parts (1n1u1w) 2096 | -8/Materials | Build established: Mutant 2259 | -8/Materials | Lost 3 parts (2n1w) 2622 | -8/Materials | Discovered exit to Factory (range 5) 2746 | -8/Materials | Repaired Lgt. Assault Rifle 2786 | -8/Materials | Build established: Hacker-Mutant 3086 | -8/Materials | Central database locked down 3445 | -8/Materials | Entered Factory 3445 | -7/Factory | Accompanied by 1 ally 3445 | -7/Factory | Evolved 2 slots: Utility x2 3704 | -7/Factory | Discovered new exit (range 15) 3818 | -7/Factory | Identified exit to Storage 3818 | -7/Factory | Identified exit to Lower Caves 4210 | -7/Factory | Discovered new exit (range 15) 4356 | -7/Factory | Entered Storage 4358 | -7/Storage | Loaded intel: 13 trap records 4376 | -7/Storage | Central database locked down 4528 | -7/Storage | Used back door to open Recycling access 4962 | -7/Storage | Entered Recycling 4963 | -7/Recycling | Loaded intel: 4 recycling unit locations 5012 | -7/Recycling | Lost 6 parts (4n2u) 5364 | -7/Recycling | Build established: Commander-Mutant 5751 | -7/Recycling | Discovered new exit (range 15) 6037 | -7/Recycling | Found Prototype Device 6037 | -7/Recycling | Identified Scrap Engine 6054 | -7/Recycling | Entered Scraplab 6977 | -7/Recycling | Build established: Commander-Construct 7063 | -7/Recycling | Entered Factory 7063 | -5/Factory | Accompanied by 10 allies 7063 | -5/Factory | Evolved 4 slots: Power x1, Utility x2, Weapon x1 7644 | -5/Factory | Cargo convoy interrupted 7675 | -5/Factory | Destroyed 8 combat bots 7680 | -5/Factory | Found Prototype Device 7680 | -5/Factory | Identified Exp. Shock Absorption System 7688 | -5/Factory | Found Prototype Launcher 7688 | -5/Factory | Identified Enh. Gamma Bomb Array 7691 | -5/Factory | Lost 5 allies 7774 | -5/Factory | P-70 Sage assimilated allied Guardian 4a 7825 | -5/Factory | Lost 4 allies 7858 | -5/Factory | Discovered new exit (range 15) 7934 | -5/Factory | Discovered new exit (range 15) 7963 | -5/Factory | First assault squad dispatched 7968 | -5/Factory | Entered Upper Caves 8003 | -5/Upper Caves | Learned Factory terminal intel 8057 | -5/Upper Caves | Build established: Hacker-Construct 8337 | -5/Upper Caves | Discovered new exit (range 5) 8362 | -5/Upper Caves | Encountered a Warlord checkpoint 8426 | -5/Upper Caves | Entered another Upper Caves area 8742 | -5/Upper Caves | Learned 12 Factory zone layouts 8864 | -5/Upper Caves | Discovered new exit (range 5) 8868 | -5/Upper Caves | Entered Zhirov 8868 | -5/Zhirov | Discovered new exit (range 3) 8885 | -5/Zhirov | Met Zhirov 8906 | -5/Zhirov | Learned location of Quarantine (-3) 8906 | -5/Zhirov | Learned location of Testing (-2) 8906 | -5/Zhirov | Learned location of Command (-1) 8912 | -5/Zhirov | Zhirov requested help retrieving the SGEMP Prototype 8928 | -5/Zhirov | Found Alien Artifact 8928 | -5/Zhirov | Identified Integrated Reactor 8928 | -5/Zhirov | Installed Integrated Reactor, increased core energy generation (+10) 8942 | -5/Zhirov | Found Alien Artifact 9047 | -5/Zhirov | Entered Proximity Caves 9071 | -4/Proximity Caves | Learned location of 1 exit from Research 9113 | -4/Proximity Caves | Attracted the attention of an 0b10 checkpoint 9368 | -4/Proximity Caves | Discovered new exit (range 10) 9572 | -4/Proximity Caves | Entered Factory 9572 | -4/Factory | Evolved 2 slots: Power x1, Weapon x1 9573 | -4/Factory | Identified exit to Extension 9573 | -4/Factory | Identified exit to Upper Caves 9574 | -4/Factory | Loaded intel: 28 terminal locations 9633 | -4/Factory | Repaired Mak. Transmission Jammer 9756 | -4/Factory | Entered Extension 10082 | -4/Extension | Spotted B-86 Titan 10096 | -4/Extension | Rescued a captive Derelict 10329 | -4/Extension | Rescued A7 10501 | -4/Extension | Allies destroyed B-86 Titan 10504 | -4/Extension | Spotted B-86 Titan 10519 | -4/Extension | Allies destroyed B-86 Titan 10568 | -4/Extension | Lost 4 allies 10747 | -4/Extension | Rescued a captive Derelict 10839 | -4/Extension | Discovered new exit (range 10) 10840 | -4/Extension | Discovered new exit (range 6) 10916 | -4/Extension | Entered Cetus 10916 | -4/Cetus | Accompanied by 10 allies (A7) 10921 | -4/Cetus | Acquired a Cetus Manufacturing Module code from A7 10930 | -4/Cetus | Spotted Cetus Guard 10930 | -4/Cetus | Spotted Cetus Guard 10934 | -4/Cetus | Spotted Cetus Guard 10938 | -4/Cetus | Destroyed Cetus Guard 10938 | -4/Cetus | Destroyed Cetus Guard 10939 | -4/Cetus | Destroyed Cetus Guard 10940 | -4/Cetus | Spotted Cetus Guard 10950 | -4/Cetus | Allies destroyed Cetus Guard 11003 | -4/Cetus | Escorted A7 to Cetus Mainframe 11011 | -4/Cetus | Started Cetus Manufacturing Module 11024 | -4/Cetus | Discovered new exit (range 16) 11036 | -4/Cetus | Manufactured an Enhanced Grunt 11043 | -4/Cetus | Spotted Cetus Guard 11043 | -4/Cetus | Spotted Cetus Guard 11045 | -4/Cetus | Destroyed Cetus Guard 11046 | -4/Cetus | Spotted Cetus Guard 11047 | -4/Cetus | Spotted Cetus Guard 11049 | -4/Cetus | Destroyed Cetus Guard 11050 | -4/Cetus | Destroyed Cetus Guard 11051 | -4/Cetus | Destroyed Cetus Guard 11060 | -4/Cetus | Discovered new exit (range 16) 11061 | -4/Cetus | Manufactured an Enhanced Grunt 11066 | -4/Cetus | Met Revision 17 11073 | -4/Cetus | Build established: Commander-Construct 11086 | -4/Cetus | Manufactured an Enhanced Grunt 11111 | -4/Cetus | Manufactured an Enhanced Grunt 11136 | -4/Cetus | Manufactured an Enhanced Grunt 11176 | -4/Cetus | Entered Archives 11176 | -4/Archives | Accompanied by 15 allies (A7) 11181 | -4/Archives | Received a hacking code to weaken MAIN.C 11234 | -4/Archives | Lost 3 allies 11273 | -4/Archives | Discovered new exit (range 15) 11304 | -4/Archives | Discovered new exit (range 16) 11654 | -4/Archives | Discovered new exit (range 16) 11700 | -4/Archives | Entered Hub_04(d) 11700 | -4/Hub_04(d) | Accompanied by 11 allies 11825 | -4/Hub_04(d) | Lost 5 allies 11882 | -4/Hub_04(d) | Lost 3 allies 11904 | -4/Hub_04(d) | Discovered new exit (range 13) 11923 | -4/Hub_04(d) | Discovered new exit (range 12) 11985 | -4/Hub_04(d) | Network Hub disabled 11992 | -4/Hub_04(d) | Spotted Lightning 11994 | -4/Hub_04(d) | Spotted Lightning 11994 | -4/Hub_04(d) | Spotted Lightning 11995 | -4/Hub_04(d) | Entered Research 11995 | -3/Research | Accompanied by 1 ally 11995 | -3/Research | Evolved 2 slots: Propulsion x1, Utility x1 11996 | -3/Research | Identified exit to Quarantine 12124 | -3/Research | Discovered new exit (range 11) 12160 | -3/Research | Spotted B-86 Titan 12185 | -3/Research | Destroyed B-86 Titan 12195 | -3/Research | Revision forces began assault on 0b10 12277 | -3/Research | Spotted B-86 Titan 12310 | -3/Research | Destroyed B-86 Titan 12321 | -3/Research | Met up with Revision 17++ 12365 | -3/Research | Build established: Construct 12550 | -3/Research | Discovered new exit (range 9) 12695 | -3/Research | Research terminal network offline 12933 | -3/Research | Found Prototype Device 12933 | -3/Research | Identified Adv. Kinecellerator 13104 | -3/Research | Crushed by falling debris 13141 | -3/Research | Spotted B-90 Cyclops 13181 | -3/Research | Destroyed B-90 Cyclops 13426 | -3/Research | Found Corrupted Quantum Capacitor 13501 | -3/Research | Entered Quarantine 13521 | -3/Quarantine | Found Alien Artifact 13523 | -3/Quarantine | Identified Subatomic Replicator 13523 | -3/Quarantine | Used Subatomic Replicator to replicate Enh. Gamma Bomb Array 13589 | -3/Quarantine | Found Prototype Launcher 13589 | -3/Quarantine | Identified Com. Tesla Bomb Launcher 13716 | -3/Quarantine | Cryocooling Duct disabled 13731 | -3/Quarantine | Ambient heat levels rising (+20) 13731 | -3/Quarantine | Non-combat units ordered to evacuate 13853 | -3/Quarantine | Found Alien Artifact 13853 | -3/Quarantine | Identified Dimensional Node Initializer 13853 | -3/Quarantine | Initialized slip node 13862 | -3/Quarantine | Found Alien Artifact 13862 | -3/Quarantine | Identified Hpw. Transdimensional Reconstructor 13862 | -3/Quarantine | Warped through subspace to slip node 13868 | -3/Quarantine | Identified Transdimensional Reconstructor 13868 | -3/Quarantine | Warped through subspace to slip node 13884 | -3/Quarantine | Found Hpw. Transdimensional Reconstructor 13921 | -3/Quarantine | Spotted Alpha 7 13976 | -3/Quarantine | Destroyed Alpha 7 14000 | -3/Quarantine | Found Prototype Device 14000 | -3/Quarantine | Identified Exp. ECM Suite 14035 | -3/Quarantine | Found Alien Launcher 14139 | -3/Quarantine | System corruption reached 10% 14386 | -3/Quarantine | Discovered new exit (range 5) 14660 | -3/Quarantine | Entered Research 14660 | -2/Research | Evolved 2 slots: Utility x2 15172 | -2/Research | Lost 3 parts (2u1w) 15298 | -2/Research | Discovered new exit (range 12) 15309 | -2/Research | Identified exit to Testing 15353 | -2/Research | Discovered new exit (range 6) 15359 | -2/Research | Identified exit to Access 15414 | -2/Research | Build established: Infiltrator-Construct 15446 | -2/Research | Entered Testing 15457 | -2/Testing | Identified Sigix Terminator 15518 | -2/Testing | Found Prototype Device 15518 | -2/Testing | Identified Thermal Barrier 15641 | -2/Testing | Spotted Striker 15643 | -2/Testing | Spotted Striker 15654 | -2/Testing | Destroyed Striker 15655 | -2/Testing | Destroyed Striker 15717 | -2/Testing | System corruption reached 10% 15717 | -2/Testing | Spotted Alpha 7 15789 | -2/Testing | Destroyed Alpha 7 15792 | -2/Testing | Lost 3 parts (1u2w) 15797 | -2/Testing | Stole the SGEMP Prototype 15817 | -2/Testing | Garrison activated, responded to threat 15821 | -2/Testing | Warped through subspace 15849 | -2/Testing | Lost 3 parts (2u1w) 15881 | -2/Testing | Found Prototype Launcher 15945 | -2/Testing | Build established: Construct 16028 | -2/Testing | Rewired PL-DFBO451JYF 16054 | -2/Testing | Entered Access 16054 | -1/Access | Evolved 2 slots: Utility x2 16055 | -1/Access | Delivered the SGEMP Prototype to Zhirov 16055 | -1/Access | Zhirov transferred Access data 16056 | -1/Access | Loaded intel: 118 machine locations 16056 | -1/Access | Loaded intel: 94 trap records 16056 | -1/Access | Identified exit to Surface 16056 | -1/Access | Discovered exit to Surface (range 120) 16056 | -1/Access | Identified exit to Command 16056 | -1/Access | Discovered exit to Command (range 110) 16138 | -1/Access | Adv. Hacking Suite fried by hacking feedback 16232 | -1/Access | Identified Gui. Micro-nuke Launcher 16274 | -1/Access | Zhirov warped through subspace 16339 | -1/Access | Destroyed 7 combat bots 16453 | -1/Access | Lost 3 parts (2u1w) 16533 | -1/Access | Lost 4 parts (2u2w) 16573 | -1/Access | System corruption reached 10% 16599 | -1/Access | Lost 3 parts (1n1u1w) 16802 | -1/Access | Entered Command 16828 | -1/Command | Found Quantum Capacitor 16930 | -1/Command | Spotted M Guard 16931 | -1/Command | Spotted M Guard 16933 | -1/Command | Spotted Combat Programmer 16934 | -1/Command | Spotted Combat Programmer 16967 | -1/Command | Build established: Scavenger-Construct 16978 | -1/Command | Destroyed Combat Programmer 17007 | -1/Command | System corruption reached 30% 17029 | -1/Command | Core integrity fell below 50% 17046 | -1/Command | Destroyed Combat Programmer 17052 | -1/Command | First assault squad dispatched 17065 | -1/Command | Lost 17 parts (3n9u5w) 17105 | -1/Command | Core integrity fell below 20% 17109 | -1/Command | Destroyed by G-73 Enforcer with Phase Gun Last Messages --------------- 17093_ System corrupted: Centrium Leg rejected. 17094_ Graphene Brace blown off. 17094_ E-15 Imp destroyed. 17096_ Acquired 18 matter. 17097_ Antimatter-Quantum Reactor destroyed. 17097_ Antimatter-Quantum Reactor core remains intact and functional. 17102_ Acquired Centrium Leg. 17103_ Antimatter-Quantum Reactor destroyed. 17104_ Kicked G-73 Enforcer. 17104_ Centrium Leg destroyed. 17104_ Adv. Target Analyzer destroyed. 17104_ Critical hit (Blast). 17106_ Slammed into P-80 Master. 17106_ Quantum Capacitor destroyed. 17107_ Adv. Target Analyzer destroyed. 17107_ Slammed into G-73 Enforcer. 17107_ Exp. Optical Array broken. 17107_ Destabilizing: Short circuit. 17108_ Slammed into P-80 Master. Map ----- +----------------------------------------------------+ | ## "## ### ### ####"##" # # | | / " # | | / ! % # # | | % / ^ # # | | %% / % %=% ############## | | % / % [ % #????????????? | | ?# "## ### """ "###### "*########???????? | | ?????????????# ### #?????# #=%= #???????? | | ?????????????###???#####????## # = [ #???????? | | ????????????????????????????# *% #???????? | | ????????????????????????????# #???????? | | ????????????????????????????## % #???????? | | ????????????????????????????# #???????? | | ????????????????????????????## #???????? | | ????????????????????????????# #???????? | | ?????????????????????######## #???????? | | ?????????????????????# # ## #???????? | | ?????????????????????# # * #???????? | | ?????????????????????# # #???????? | | ?????????????????????# # #???????? | | ?????????????????????# = ## # #???????? | | ?????????????????????# ## # #???????? | | ?????????????????????# ##% / #???????? | | ?????????????????????# % ## # #???????? | | ?????????????????????####p#### # #???????? | | ??????????????????????#g @ ### # #???????? | | ??????????????????????#l"g # #???????? | | ??????????????????????# Y" Y ##########???????? | | ??????????????????????#plgg######????????????????? | | ??????????????????????##l=##?????????????????????? | | ???????????????????????#b #??????????????????????? | | ???????????????????????# #??????????????????????? | | ???????????????????????# #??????????????????????? | | ???????????????????????# #??????????????????????? | | ???????????????????????# #??????????????????????? | | ???????????????????????#% #??????????????????????? | | ???????????????????????# #??????????????????????? | | ???????????????????????# #??????????????????????? | | ???????????????????????# w#??????????????????????? | | ???????????????????????# #??????????????????????? | | ???????????????????????# #??????????????????????? | | ???????????????????????# #??????????????????????? | | ???????????????????????# #??????????????????????? | | ???????????????????????# #??????????????????????? | | ???????????????????????# #??????????????????????? | | ???????????????????????# #??????????????????????? | | ???????????????????????? #??????????????????????? | | ???????????????????????? #??????????????????????? | | ???????????????????????? ???????????????????????? | | ???????????????????????? ???????????????????????? | +----------------------------------------------------+ Best States ------------- Heat Dissipation 116 Energy Generation 116 Energy Capacity 1836 Matter Stores 300 Matter Capacity 800 Sight Range 23 Robot Scan Range 18 Terrain Scan Range 24 Terrain Scan Density 210 ECM Strength 3 Jamming Range 16 Cloak Strength 2 Base Temperature (-) 200 Corruption Containment 12 Armor Coverage 225 Resistance: TH 50 Core Shielding 40 Point Defense Rating 160 Weapon Cycling 25 Phase Shifting 15 Evasion (%) 74 Targeting Accuracy 16 Target Analysis 12 Core Analysis 6 Recoil Reduction 5 Offensive Hacking 30 Defensive Hacking 14 Authchip Count 1 Item Schematics ----------------- Sml. Storage Unit | -8/Materials | Scanalyzed Nuclear Pulse Array | -7/Recycling | Hacked Fission Core | -7/Recycling | Hacked Exp. Heat Sink | -5/Zhirov | Free Assault Drone Bay | -5/Zhirov | Free Exp. Optical Array | -5/Zhirov | Free Imp. Arc Thrower | -5/Zhirov | Free Exp. Focal Shield | -2/Testing | Archive Robot Schematics ------------------ None Fabricated ------------ Nothing Repaired ---------- Lgt. Assault Rifle | 3% | -8/Materials Mak. Transmission Jammer | 56% | -4/Factory Alien Tech Used ----------------- Integrated Reactor Subatomic Replicator Dimensional Node Initializer High-powered Transdimensional Reconstructor Transdimensional Reconstructor Achievements -------------- More Power To You No Explosion For You Special Delivery Challenges ------------ None Game ------ Seed GaussControlNanosword Manual? 0 Play Time 03:07:49 Cumulative 153.5 hours Start 2025.07.27 @ 12:58:53 End 2025.07.27 @ 16:07:16 Sessions 1 Manual Loads 0 Difficulty Rogue Special Mode None Game No. 135 Rogue 135 Adventurer 0 Explorer 0 Win Type - Total 3 Types 2/0/1/0/0/0/0/0/0/0 Lore% 72 Gallery% 66 Achievement% 60 Wizard Run 0 Options --------- Layout 1 ASCII 0 Keyboard 0 Movement Numpad Keybinds 0 Fullscreen 1 Font 24/Smallcaps Map View 50x35 Zoom Use 0% Tactical HUD 1 Map Filters NONE Filters NONE Steam 1 RUN: 336c9142-6440-406c-a806-7ed8945cd8f9